fUSD/lending_fUSD_20250520
["ID","MTS","AMOUNT","RATE_DAILY","PERIOD"]
[361781152,1747775450139,-420.0,0.00032876,5]
[361781154,1747775450148,-420.0,0.00032876,5]
[361781156,1747775450158,-420.0,0.00032876,5]
[361781158,1747775450168,-420.0,0.00032876,5]
[361781160,1747775450177,-420.0,0.00032876,5]
[361781162,1747775450187,-2945.61,0.00032876,5]
[361781164,1747775450197,-3060.61,0.00032876,5]
[361781166,1747775450210,-343.1,0.00032876,5]
[361781168,1747775450219,-420.0,0.00032876,5]
[361781170,1747775450228,-599.48,0.00032876,5]
[361781172,1747775450238,-620.96,0.00032876,5]
[361781174,1747775450249,-420.0,0.00032876,5]
[361781176,1747775450258,-420.0,0.00032876,5]
[361781178,1747775450268,-420.0,0.00032876,5]
[361781180,1747775450278,-420.0,0.00032876,5]
[361781182,1747775450288,-420.0,0.00032876,5]
[361781184,1747775450297,-420.0,0.00032876,5]
[361781186,1747775450306,-420.0,0.00032876,5]
[361781188,1747775450315,-521.23,0.00032876,5]
[361781190,1747775450325,-2692.66,0.00032876,5]
[361781192,1747775450334,-5000.0,0.00032876,5]
[361781194,1747775450344,-1901.74,0.00032876,5]
[361781196,1747775450353,-1489.07,0.00032876,5]
[361781197,1747775450363,-420.0,0.00032876,5]
[361781200,1747775450373,-420.0,0.00032876,5]
[361781202,1747775450382,-420.0,0.00032876,5]
[361781204,1747775450391,-1036.28,0.00032876,5]
[361781206,1747775450401,-2519.7,0.00032876,5]
[361781208,1747775450410,-680.6,0.00032876,5]
[361781210,1747775450420,-430.65,0.00032876,5]
[361781212,1747775450429,-1831.12,0.00032876,5]
[361781214,1747775450438,-550.35,0.00032876,5]
[361781216,1747775450448,-358.53671472,0.00032876,5]
[361781218,1747775450457,-420.0,0.00032876,5]
[361781220,1747775450467,-763.04,0.00032876,5]
[361781222,1747775450477,-420.0,0.00032876,5]
[361781224,1747775450486,-1000.0,0.00032876,5]
[361781226,1747775450495,-420.0,0.00032876,5]
[361781228,1747775450504,-420.0,0.00032876,5]
[361781230,1747775450514,-1824.59,0.00032876,5]
[361781232,1747775450524,-420.0,0.00032876,5]
[361781234,1747775450533,-2994.0,0.00032876,5]
[361781236,1747775450542,-470.63,0.00032876,5]
[361781238,1747775450552,-420.0,0.00032876,5]
[361781240,1747775450561,-420.0,0.00032876,5]
[361781242,1747775450570,-420.0,0.00032876,5]
[361781244,1747775450580,-3501.68,0.00032876,5]
[361781246,1747775450589,-420.0,0.00032876,5]
[361781248,1747775450598,-1368.97,0.00032876,5]
[361781250,1747775450608,-465.32,0.00032876,5]
[361781252,1747775450617,-420.0,0.00032876,5]
[361781254,1747775450626,-400.0,0.00032876,5]
[361781256,1747775450637,-420.0,0.00032876,5]
[361781258,1747775450646,-420.0,0.00032876,5]
[361781260,1747775450655,-420.0,0.00032876,5]
[361781263,1747775450665,-151.0,0.00032876,7]
[361781265,1747775450674,-420.0,0.00032876,5]
[361781267,1747775450683,-1752.48,0.00032876,5]
[361781269,1747775450693,-1285.96,0.00032876,5]
[361781271,1747775450703,-151.0,0.00032876,7]
[361781273,1747775450713,-1061.12,0.00032876,5]
[361781275,1747775450722,-1081.3,0.00032876,5]
[361781277,1747775450732,-473.24,0.00032876,5]
[361781279,1747775450742,-420.0,0.00032876,5]
[361781281,1747775450752,-420.0,0.00032876,5]
[361781283,1747775450761,-2897.32,0.00032876,5]
[361781285,1747775450771,-420.0,0.00032876,5]
[361781287,1747775450781,-475.06,0.00032876,5]
[361781289,1747775450790,-572.77,0.00032876,5]
[361781291,1747775450800,-567.93,0.00032876,5]
[361781293,1747775450809,-420.0,0.00032876,5]
[361781295,1747775450819,-151.0,0.00032876,7]
[361781297,1747775450829,-207.98052903,0.00032876,5]
[361781298,1747775450838,-420.0,0.00032876,5]
[361781301,1747775450848,-1373.11,0.00032876,5]
[361781303,1747775450858,-1770.66,0.00032876,5]
[361781305,1747775450867,-420.0,0.00032876,5]
[361781306,1747775450876,-523.0,0.00032876,5]
[361781308,1747775450886,-420.0,0.00032876,5]
[361781310,1747775450895,-420.0,0.00032876,5]
[361781312,1747775450905,-596.5,0.00032876,5]
[361781314,1747775450914,-693.81,0.00032876,5]
[361781316,1747775450924,-420.0,0.00032876,5]
[361781318,1747775450933,-477.93734342,0.00032876,5]
[361781320,1747775450943,-564.07,0.00032876,5]
[361781322,1747775450952,-622.19,0.00032876,5]
[361781324,1747775450961,-420.0,0.00032876,5]
[361781326,1747775450971,-420.0,0.00032876,5]
[361781328,1747775450980,-3491.43,0.00032876,5]
[361781330,1747775450990,-780.19,0.00032876,5]
[361781332,1747775450999,-420.0,0.00032876,5]
[361781334,1747775451009,-420.0,0.00032876,5]
[361781336,1747775451018,-493.66,0.00032876,5]
[361781338,1747775451028,-420.0,0.00032876,5]
[361781340,1747775451038,-727.98,0.00032876,5]
[361781342,1747775451047,-420.0,0.00032876,5]
[361781344,1747775451057,-791.87,0.00032876,5]
[361781346,1747775451066,-5543.98,0.00032876,5]
[361781348,1747775451076,-1045.73,0.00032876,5]
[361781350,1747775451085,-420.0,0.00032876,5]
[361781352,1747775451095,-420.0,0.00032876,5]
[361781354,1747775451104,-1111.5,0.00032876,5]
[361781356,1747775451113,-420.0,0.00032876,5]
[361781358,1747775451123,-400.0,0.00032876,5]
[361781360,1747775451133,-420.0,0.00032876,5]
[361781362,1747775451144,-525.87,0.00032876,5]
[361781364,1747775451153,-553.58,0.00032876,5]
[361781366,1747775451162,-420.0,0.00032876,5]
[361781368,1747775451171,-420.0,0.00032876,5]
[361781370,1747775451181,-545.66,0.00032876,5]
[361781372,1747775451191,-420.0,0.00032876,5]
[361781374,1747775451205,-420.0,0.00032876,5]
[361781376,1747775451214,-420.0,0.00032876,5]
[361781378,1747775451224,-420.0,0.00032876,5]
[361781380,1747775451233,-420.0,0.00032876,5]
[361781382,1747775451243,-479.47,0.00032876,5]
[361781384,1747775451252,-575.97,0.00032876,5]
[361781386,1747775451262,-422.52,0.00032876,5]
[361781388,1747775451271,-420.0,0.00032876,5]
[361781390,1747775451283,-662.23,0.00032876,5]
[361781392,1747775451292,-1703.36,0.00032876,5]
[361781394,1747775451302,-151.0,0.00032876,7]
[361781396,1747775451311,-420.0,0.00032876,2]
[361781398,1747775451320,-1505.43,0.00032876,5]
[361781400,1747775451329,-487.33,0.00032876,5]
[361781402,1747775451339,-420.0,0.00032876,5]
[361781404,1747775451348,-420.0,0.00032876,5]
[361781406,1747775451359,-420.0,0.00032876,5]
[361781408,1747775451368,-420.0,0.00032876,5]
[361781410,1747775451377,-1602.46,0.00032876,5]
[361781412,1747775451388,-620.89,0.00032876,5]
[361781414,1747775451399,-420.0,0.00032876,5]
[361781416,1747775451408,-420.0,0.00032876,5]
[361781418,1747775451417,-1363.61,0.00032876,5]
[361781420,1747775451427,-974.55,0.00032876,5]
[361781422,1747775451436,-552.52,0.00032876,5]
[361781424,1747775451444,-491.19,0.00032876,5]
[361781426,1747775451454,-937.85,0.00032876,5]
[361781428,1747775451463,-420.0,0.00032876,5]
[361781430,1747775451472,-426.14,0.00032876,5]
[361781432,1747775451481,-2644.81,0.00032876,5]
[361781434,1747775451490,-420.0,0.00032876,5]
[361781436,1747775451500,-3304.04,0.00032876,5]
[361781438,1747775451510,-400.0,0.00032876,5]
[361781440,1747775451519,-420.0,0.00032876,5]
[361781441,1747775451528,-420.0,0.00032876,5]
[361781443,1747775451537,-420.0,0.00032876,5]
[361781445,1747775451547,-1380.56,0.00032876,5]
[361781447,1747775451556,-643.56,0.00032876,5]
[361781449,1747775451565,-2308.82,0.00032876,5]
[361781451,1747775451574,-1410.39,0.00032876,5]
[361781453,1747775451583,-3370.78,0.00032876,5]
[361781455,1747775451592,-420.0,0.00032876,5]
[361781457,1747775451602,-851.15,0.00032876,5]
[361781459,1747775451612,-420.0,0.00032876,5]
[361781461,1747775451622,-2368.34,0.00032876,5]
[361781463,1747775451631,-599.76,0.00032876,5]
[361781465,1747775451642,-420.0,0.00032876,5]
[361781467,1747775451651,-420.0,0.00032876,5]
[361781469,1747775451660,-420.0,0.00032876,5]
[361781471,1747775451669,-420.0,0.00032876,5]
[361781473,1747775451679,-400.0,0.00032876,5]
[361781475,1747775451688,-400.0,0.00032876,5]
[361781477,1747775451697,-420.0,0.00032876,5]
[361781479,1747775451707,-808.13,0.00032876,5]
[361781481,1747775451717,-1410.87,0.00032876,5]
[361781483,1747775451726,-420.0,0.00032876,5]
[361781485,1747775451735,-420.0,0.00032876,5]
[361781487,1747775451744,-610.53,0.00032876,5]
[361781489,1747775451753,-744.43,0.00032876,5]
[361781491,1747775451762,-420.0,0.00032876,5]
[361781493,1747775451771,-420.0,0.00032876,5]
[361781495,1747775451780,-420.0,0.00032876,5]
[361781497,1747775451790,-933.24,0.00032876,5]
[361781499,1747775451799,-790.7,0.00032876,5]
[361781501,1747775451808,-420.0,0.00032876,3]
[361781503,1747775451817,-1142.97,0.00032876,5]
[361781505,1747775451827,-400.0,0.00032876,5]
[361781507,1747775451837,-2740.09,0.00032876,5]
[361781509,1747775451846,-420.0,0.00032876,5]
[361781511,1747775451856,-420.0,0.00032876,5]
[361781513,1747775451865,-420.0,0.00032876,5]
[361781515,1747775451875,-420.0,0.00032876,5]
[361781517,1747775451885,-420.0,0.00032876,5]
[361781519,1747775451894,-420.0,0.00032876,5]
[361781521,1747775451903,-420.0,0.00032876,5]
[361781523,1747775451913,-400.0,0.00032876,5]
[361781525,1747775451923,-420.0,0.00032876,5]
[361781526,1747775451932,-420.0,0.00032876,5]
[361781528,1747775451941,-420.0,0.00032876,5]
[361781530,1747775451950,-500.0,0.00032876,5]
[361781532,1747775451959,-536.68,0.00032876,5]
[361781535,1747775451970,-528.66,0.00032876,5]
[361781537,1747775451979,-1755.85,0.00032876,5]
[361781539,1747775451988,-3456.52,0.00032876,5]
[361781540,1747775451997,-643.45,0.00032876,5]
[361781542,1747775452007,-420.0,0.00032876,5]
[361781544,1747775452016,-420.0,0.00032876,5]
[361781546,1747775452026,-380.91435749,0.00032876,5]
[361781548,1747775452035,-1410.39,0.00032876,5]
[361781550,1747775452045,-697.64,0.00032876,5]
[361781552,1747775452054,-420.0,0.00032876,5]
[361781554,1747775452063,-420.0,0.00032876,5]
[361781556,1747775452072,-1028.89,0.00032876,5]
[361781558,1747775452081,-881.99,0.00032876,5]
[361781560,1747775452090,-420.0,0.00032876,5]
[361781562,1747775452100,-4273.14,0.00032876,5]
[361781564,1747775452110,-808.95,0.00032876,5]
[361781566,1747775452119,-420.0,0.00032876,5]
[361781568,1747775452128,-420.0,0.00032876,5]
[361781570,1747775452139,-420.0,0.00032876,5]
[361781572,1747775452148,-854.44,0.00032876,5]
[361781574,1747775452157,-1016.1,0.00032876,5]
[361781576,1747775452166,-420.0,0.00032876,5]
[361781578,1747775452176,-1524.51,0.00032876,5]
[361781580,1747775452185,-400.0,0.00032876,5]
[361781582,1747775452194,-420.0,0.00032876,5]
[361781584,1747775452206,-1178.56,0.00032876,5]
[361781586,1747775452215,-1405.58,0.00032876,5]
[361781588,1747775452225,-420.0,0.00032876,5]
[361781590,1747775452234,-420.0,0.00032876,5]
[361781592,1747775452243,-1434.72,0.00032876,5]
[361781594,1747775452254,-2787.24,0.00032876,5]
[361781596,1747775452263,-420.0,0.00032876,5]
[361781598,1747775452272,-504.86,0.00032876,5]
[361781600,1747775452281,-3250.13,0.00032876,5]
[361781602,1747775452290,-468.67,0.00032876,5]
[361781604,1747775452299,-420.0,0.00032876,5]
[361781606,1747775452308,-469.3,0.00032876,5]
[361781608,1747775452317,-1082.7,0.00032876,5]
[361781609,1747775452326,-1619.77,0.00032876,5]
[361781612,1747775452336,-420.0,0.00032876,5]
[361781613,1747775452345,-2314.3,0.00032876,5]
[361781615,1747775452355,-420.0,0.00032876,5]
[361781617,1747775452364,-2786.49,0.00032876,5]
[361781619,1747775452373,-1057.04,0.00032876,5]
[361781621,1747775452383,-497.94,0.00032876,5]
[361781623,1747775452392,-420.0,0.00032876,5]
[361781625,1747775452402,-420.0,0.00032876,5]
[361781627,1747775452411,-420.0,0.00032876,5]
[361781629,1747775452420,-420.0,0.00032876,5]
[361781631,1747775452429,-658.53,0.00032876,5]
[361781633,1747775452439,-420.0,0.00032876,5]
[361781635,1747775452448,-400.0,0.00032876,5]
[361781637,1747775452457,-420.0,0.00032876,5]
[361781639,1747775452466,-1279.74,0.00032876,5]
[361781641,1747775452475,-698.2,0.00032876,5]
[361781643,1747775452484,-430.62,0.00032876,5]
[361781645,1747775452493,-420.0,0.00032876,5]
[361781647,1747775452502,-1208.69,0.00032876,5]
[361781649,1747775452511,-420.0,0.00032876,5]
[361781651,1747775452519,-420.0,0.00032876,2]
[361781653,1747775452530,-420.0,0.00032876,5]
[361781655,1747775452539,-420.0,0.00032876,5]
[361781657,1747775452549,-420.0,0.00032876,5]
[361781659,1747775452558,-2223.98,0.00032876,5]
[361781661,1747775452568,-420.0,0.00032876,5]
[361781663,1747775452577,-1079.76,0.00032876,5]
[361781665,1747775452586,-3274.46,0.00032876,5]
[361781667,1747775452596,-620.18,0.00032876,5]
[361781668,1747775452606,-2173.21,0.00032876,5]
[361781670,1747775452615,-420.0,0.00032876,5]
[361781672,1747775452624,-420.0,0.00032876,5]
[361781674,1747775452635,-446.84,0.00032876,5]
[361781676,1747775452644,-400.0,0.00032876,5]
[361781678,1747775452655,-496.47,0.00032876,5]
[361781680,1747775452664,-1152.38,0.00032876,5]
[361781682,1747775452673,-1895.22,0.00032876,5]
[361781684,1747775452682,-420.0,0.00032876,5]
[361781686,1747775452691,-420.0,0.00032876,5]
[361781688,1747775452701,-2277.25,0.00032876,5]
[361781690,1747775452710,-510.65,0.00032876,5]
[361781692,1747775452719,-1438.66,0.00032876,5]
[361781694,1747775452729,-151.0,0.00032876,7]
[361781696,1747775452738,-1685.31,0.00032876,5]
[361781698,1747775452747,-1223.94,0.00032876,5]
[361781700,1747775452757,-420.0,0.00032876,5]
[361781702,1747775452766,-420.0,0.00032876,5]
[361781704,1747775452775,-420.0,0.00032876,5]
[361781706,1747775452785,-2248.75,0.00032876,5]
[361781708,1747775452794,-420.0,0.00032876,5]
[361781710,1747775452803,-420.0,0.00032876,5]
[361781712,1747775452812,-1823.53,0.00032876,5]
[361781714,1747775452821,-420.0,0.00032876,5]
[361781716,1747775452831,-420.0,0.00032876,5]
[361781718,1747775452841,-420.0,0.00032876,5]
[361781720,1747775452851,-420.0,0.00032876,5]
[361781722,1747775452862,-420.0,0.00032876,5]
[361781724,1747775452871,-420.0,0.00032876,5]
[361781726,1747775452880,-3656.25,0.00032876,5]
[361781728,1747775452890,-420.0,0.00032876,5]
[361781730,1747775452901,-753.15,0.00032876,5]
[361781731,1747775452911,-2380.72,0.00032876,5]
[361781732,1747775452920,-4506.71,0.00032876,5]
[361781733,1747775452930,-420.0,0.00032876,5]
[361781734,1747775452940,-494.79,0.00032876,5]
[361781735,1747775452949,-420.0,0.00032876,5]
[361781736,1747775452959,-420.0,0.00032876,5]
[361781737,1747775452969,-3024.18,0.00032876,5]
[361781738,1747775452978,-420.0,0.00032876,5]
[361781739,1747775452988,-420.0,0.00032876,5]
[361781740,1747775452997,-420.0,0.00032876,5]
[361781741,1747775453008,-923.72,0.00032876,5]
[361781742,1747775453018,-3104.09,0.00032876,5]
[361781743,1747775453028,-537.52,0.00032876,5]
[361781744,1747775453038,-2253.54,0.00032876,5]
[361781762,1747775453170,-549.37,0.00032876,5]
[361781767,1747775453262,-420.0,0.00032876,5]
[361781769,1747775453273,-1107.95,0.00032876,5]
[361781771,1747775453283,-2281.51,0.00032876,5]
[361781773,1747775453293,-2696.8,0.00032876,5]
[361781775,1747775453303,-974.22,0.00032876,5]
[361781777,1747775453313,-1006.94,0.00032876,5]
[361781779,1747775453323,-623.32,0.00032876,5]
[361781781,1747775453333,-400.0,0.00032876,5]
[361781783,1747775453343,-420.0,0.00032876,5]
[361781785,1747775453352,-420.0,0.00032876,5]
[361781787,1747775453362,-5126.79,0.00032876,5]
[361781789,1747775453372,-420.0,0.00032876,5]
[361781791,1747775453382,-686.13,0.00032876,5]
[361781794,1747775453392,-3779.72,0.00032876,5]
[361781796,1747775453402,-1149.52,0.00032876,5]
[361781798,1747775453411,-420.0,0.00032876,5]
[361781800,1747775453421,-597.79,0.00032876,5]
[361781802,1747775453431,-420.0,0.00032876,5]
[361781804,1747775453442,-2034.21,0.00032876,5]
[361781806,1747775453451,-863.98,0.00032876,5]
[361781808,1747775453461,-469.95,0.00032876,5]
[361781810,1747775453470,-565.37,0.00032876,5]
[361781812,1747775453481,-500.0,0.00032876,5]
[361781814,1747775453491,-500.0,0.00032876,5]
[361781816,1747775453501,-420.0,0.00032876,5]
[361781818,1747775453512,-11285.4,0.00032876,5]
[361781820,1747775453522,-1429.42,0.00032876,5]
[361781822,1747775453532,-573.72,0.00032876,5]
[361781824,1747775453542,-420.0,0.00032876,5]
[361781826,1747775453551,-2877.76,0.00032876,5]
[361781829,1747775453562,-420.0,0.00032876,5]
[361781831,1747775453572,-2269.78,0.00032876,5]
[361781833,1747775453582,-2996.41332874,0.00032876,5]
[361781902,1747775454249,-151.52667126,0.00032876,5]
[361781904,1747775454259,-288.78840014,0.00032876,5]
[361781907,1747775454271,-111.21159986,0.00032876,5]
[361781909,1747775454282,-420.0,0.00032876,5]
[361781911,1747775454291,-2787.55,0.00032876,5]
[361781913,1747775454301,-400.0,0.00032876,5]
[361781915,1747775454311,-400.0,0.00032876,5]
[361781917,1747775454321,-420.0,0.00032876,5]
[361781919,1747775454331,-420.0,0.00032876,5]
[361781921,1747775454340,-420.0,0.00032876,5]
[361781923,1747775454350,-420.0,0.00032876,5]
[361781925,1747775454359,-466.62704945,0.00032876,5]
[361781927,1747775454372,-280.90295055,0.00032876,5]
[361781929,1747775454381,-420.0,0.00032876,5]
[361781932,1747775454392,-1111.22,0.00032876,5]
[361781934,1747775454402,-1095.68,0.00032876,5]
[361781936,1747775454412,-153.656994,0.00032876,5]
[361781938,1747775454422,-4073.17,0.00032876,5]
[361781940,1747775454432,-2014.33,0.00032876,5]
[361781942,1747775454442,-518.88,0.00032876,5]
[361781944,1747775454452,-420.0,0.00032876,5]
[361781946,1747775454462,-420.0,0.00032876,5]
[361781948,1747775454474,-420.0,0.00032876,5]
[361781950,1747775454483,-478.106486,0.00032876,7]
[361781952,1747775454493,-543.903224,0.00032876,7]
[361781954,1747775454502,-420.0,0.00032876,5]
[361781956,1747775454512,-222.31650854,0.00032876,5]
[361781958,1747775454522,-2094.29,0.00032876,5]
[361781960,1747775454532,-4330.3,0.00032876,5]
[361781962,1747775454542,-2259.72,0.00032876,5]
[361781964,1747775454551,-599.84,0.00032876,5]
[361781966,1747775454561,-159.25681685,0.00032876,5]
[361781969,1747775454572,-882.54,0.00032876,5]
[361781971,1747775454583,-420.0,0.00032876,5]
[361781973,1747775454593,-420.0,0.00032876,5]
[361781975,1747775454603,-478.106486,0.00032876,7]
[361781977,1747775454612,-1226.05,0.00032876,5]
[361781979,1747775454622,-201.13924429,0.00032876,5]
[361781981,1747775454632,-400.0,0.00032876,5]
[361781983,1747775454641,-4421.130436,0.00032876,5]
[361781985,1747775454651,-1956.15,0.00032876,5]
[361781987,1747775454661,-608.47,0.00032876,5]
[361781989,1747775454671,-364.97130495,0.00032876,5]
[361781991,1747775454681,-691.18,0.00032876,5]
[361781993,1747775454690,-420.0,0.00032876,5]
[361781995,1747775454700,-1201.4,0.00032876,5]
[361781997,1747775454710,-400.0,0.00032876,5]
[361781999,1747775454720,-443.23,0.00032876,5]
[361782001,1747775454729,-420.0,0.00032876,5]
[361782003,1747775454739,-979.7,0.00032876,5]
[361782005,1747775454749,-10585.68,0.00032876,5]
[361782007,1747775454759,-420.0,0.00032876,5]
[361782009,1747775454768,-3204.26,0.00032876,5]
[361782012,1747775454779,-420.0,0.00032876,5]
[361782014,1747775454789,-420.0,0.00032876,5]
[361782016,1747775454799,-2910.52,0.00032876,5]
[361782018,1747775454809,-2749.7,0.00032876,5]
[361782020,1747775454820,-420.0,0.00032876,5]
[361782022,1747775454830,-420.0,0.00032876,5]
[361782024,1747775454840,-420.0,0.00032876,5]
[361782026,1747775454850,-420.0,0.00032876,5]
[361782028,1747775454860,-400.0,0.00032876,5]
[361782030,1747775454870,-420.0,0.00032876,5]
[361782032,1747775454881,-477.17,0.00032876,5]
[361782034,1747775454891,-1510.75,0.00032876,5]
[361782036,1747775454901,-420.0,0.00032876,5]
[361782039,1747775454911,-3296.61,0.00032876,5]
[361782040,1747775454920,-420.0,0.00032876,5]
[361782043,1747775454930,-1524.54,0.00032876,5]
[361782045,1747775454940,-420.0,0.00032876,5]
[361782047,1747775454950,-420.0,0.00032876,5]
[361782049,1747775454960,-420.0,0.00032876,5]
[361782051,1747775454970,-420.0,0.00032876,5]
[361782053,1747775454980,-6899.91,0.00032876,5]
[361782055,1747775454990,-641.37,0.00032876,5]
[361782057,1747775455000,-420.0,0.00032876,5]
[361782059,1747775455011,-641.37,0.00032876,5]
[361782061,1747775455020,-420.0,0.00032876,5]
[361782063,1747775455030,-641.37,0.00032876,5]
[361782065,1747775455041,-157.67066063,0.00032876,5]
[361782067,1747775455051,-15576.77,0.00032876,5]
[361782069,1747775455061,-858.9,0.00032876,5]
[361782071,1747775455071,-420.0,0.00032876,5]
[361782073,1747775455082,-641.37,0.00032876,5]
[361782075,1747775455092,-420.0,0.00032876,5]
[361782077,1747775455102,-641.37,0.00032876,5]
[361782079,1747775455112,-641.37,0.00032876,5]
[361782082,1747775455122,-1473.12086116,0.00032876,5]
[361782091,1747775456666,-4284.3064901,0.00032861,2]
[361782092,1747775456682,-1707.78217821,0.00032861,2]
[361782093,1747775456694,-7573.14439078,0.00032861,2]
[361782094,1747775456710,-1025.10199883,0.00032861,2]
[361782095,1747775456722,-4366.94024691,0.00032861,2]
[361782127,1747775524601,1000.0,0.00042793,60]
[361782128,1747775524652,155.0,0.00042793,60]
[361782129,1747775527831,151.0,0.00042793,60]
[361782130,1747775529664,151.0,0.00042793,60]
[361782133,1747775687222,200748.698152,0.00042793,60]
[361782135,1747775762061,973.0,0.00042793,120]
[361782136,1747775825685,199.20597015,0.00042793,120]
[361782137,1747775871390,182.01465215,0.00042793,120]
[361782139,1747776213209,220.0,0.00042787,120]
[361782144,1747776308021,500.0,0.00012,2]
[361782145,1747776308315,1996.5456597,0.00042791,90]
[361782146,1747776310833,3332.81165211,0.00042791,120]
[361782147,1747776312963,905.28352564,0.00042791,91]
[361782148,1747776317149,2859.71296701,0.00042791,120]
[361782149,1747776319829,2732.54194672,0.00042791,120]
[361782150,1747776321745,745.714179,0.00042791,120]
[361782151,1747776323470,746.21773934,0.00042791,120]
[361782152,1747776326876,668.19218902,0.00027,120]
[361782153,1747776332263,2408.32512366,0.00042791,120]
[361782154,1747776332331,211.48061908,0.0002,120]
[361782155,1747776334232,302.06913884,0.0002739,120]
[361782161,1747776338123,355.25448671,0.00042791,120]
[361782163,1747776341700,486.55791677,0.00042791,120]
[361782164,1747776341809,310.29932421,0.00042791,120]
[361782165,1747776344064,860.48437073,0.00042791,120]
[361782166,1747776361955,1521.96881138,0.00042791,90]
[361782167,1747776362368,168.78908674,0.0002739,120]
[361782168,1747776364879,160.58927699,0.00042791,120]
[361782169,1747776366544,897.18930377,0.00042791,120]
[361782170,1747776369543,225.64119042,0.00042791,120]
[361782171,1747776374350,1432.32628589,0.00042791,120]
[361782172,1747776375586,726.72313461,0.00042791,120]
[361782174,1747776377480,1316.10187209,0.00042791,120]
[361782175,1747776383346,719.32492336,0.00042791,120]
[361782176,1747776384072,2337.37161122,0.00042791,120]
[361782177,1747776389261,614.84044382,0.00042791,120]
[361782178,1747776401019,472.51335431,0.00042791,120]
[361782179,1747776432398,592.46411209,0.0002301,120]
[361782180,1747776434080,1516.43927303,0.00042791,120]
[361782181,1747776450547,3226.95458495,0.00042791,120]
[361782182,1747776459427,1130.77265745,0.00042791,120]
[361782183,1747776459510,21056.48529623,0.00042791,120]
[361782184,1747776460228,182.16154928,0.00042791,120]
[361782185,1747776464609,439.63937849,0.00042791,120]
[361782186,1747776466060,478.57723406,0.00042791,120]
[361782188,1747776483219,704.80679273,0.00042791,120]
[361782189,1747776498484,1024.19253102,0.00042791,120]
[361782190,1747776507891,567.68054419,0.00042791,120]
[361782191,1747776509783,2283.14804184,0.00042791,120]
[361782192,1747776512290,971.25521639,0.00042791,120]
[361782193,1747776512757,1989.80493113,0.00042791,120]
[361782194,1747776513060,960.79185239,0.00042791,120]
[361782195,1747776513411,971.10963841,0.00042791,120]
[361782196,1747776513677,3054.0407031,0.00042791,120]
[361782197,1747776513750,473.16129969,0.00042791,60]
[361782198,1747776513998,1056.5689684,0.00042791,120]
[361782199,1747776514486,382.0373583,0.00042791,120]
[361782200,1747776515372,171.39847908,0.00042791,120]
[361782201,1747776515407,348.07278473,0.00042791,120]
[361782202,1747776515880,3038.23451844,0.0002739,120]
[361782203,1747776517360,1853.20677112,0.00025,120]
[361782204,1747776517506,756.0,0.00042791,120]
[361782205,1747776518430,2623.83914162,0.00042791,120]
[361782206,1747776518471,3326.6314309,0.00042791,120]
[361782207,1747776518510,1131.91897218,0.00042791,120]
[361782208,1747776519564,588.03379234,0.00042791,120]
[361782209,1747776519845,486.04433877,0.00042791,120]